[Event "4NCL 2022-2023"]
[Site "Daventry"]
[Date "2023.03.18"]
[Round "7.34"]
[White "Royal, Shreyas"]
[Black "Wall, Tim P"]
[Result "1-0"]
[ECO "E61"]
[WhiteElo "2452"]
[BlackElo "2239"]
[Annotator "TA"]
[PlyCount "81"]
[EventDate "2022.10.20"]
[EventType "team-tourn"]
[EventCountry "ENG"]
[SourceTitle "playchess.com"]
[Source "ChessBase"]
[SourceQuality "1"]
[TimeControl "40/6000+30:2400+30"]

{[%evp 16,81,14,-17,42,45,57,51,52,45,54,54,57,52,52,44,43,47,55,60,60,57,87,25,52,36,48,10,49,28,11,0,0,0,0,0,0,0,29,0,0,4,11,-15,-22,-38,-27,-43,-47,-42,-29,-27,388,415,391,400,405,369,441,342,681,680,1080,1068,1092,1072,1037,703]} 1. Nf3 {[%emt 0:00:03]} g6 {[%emt 0:03:49]} 2. c4 {[%emt 0:00:12]} Bg7 {[%emt 0:00:31]} 3. Nc3 {[%emt 0:00:10]} d6 {[%emt 0:00:59]} 4. d4 {[%emt 0:01:01]} e5 {[%emt 0:01:06]} 5. e3 {[%emt 0:00:22]} Nd7 {[%emt 0:04:15]} 6. Be2 {[%emt 0:00:13]} Ngf6 {[%emt 0:00:29]} 7. O-O {[%emt 0:00:09]} O-O {[%emt 0:00:07]} 8. b4 {[%emt 0:00:10]} Re8 {[%emt 0:00:41]} 9. Qc2 {[%emt 0:00:36]} e4 {[%emt 0:06:24] E61: King's Indian: Early deviations for White, including Smyslov System.} (9... a5 $11) 10. Nd2 $14 {[%emt 0:00:09][%cal Rd2e4]} Qe7 {[%emt 0:00:19]} 11. Bb2 {[%emt 0:00:11]} Nf8 {[%emt 0:01:25] White is slightly better.} 12. Rfc1 {[%emt 0:00:09]} Bf5 {[%emt 0:06:08]} 13. Nd5 {[%emt 0:01:55]} Nxd5 {[%emt 0:11:21]} 14. cxd5 {[%emt 0:00:08]} Rac8 $1 {[%emt 0:04:18]} 15. Qa4 {[%emt 0:00:36]} a6 {[%emt 0:05:54] [#]} 16. Rc2 $146 {[%emt 0:00:28]} ({Predecessor:} 16. Rc3 Bd7 17. Qb3 Bb5 18. Bxb5 axb5 19. Rac1 Qd7 20. Qc2 Qf5 21. Qb3 Re7 22. Nb1 {½-½ Fontaine,Q (2122)-Bojkov,D (2489) BEL-chT 1516 2015 (1.3)}) 16... Nd7 {[%emt 0:05:56]} 17. Qb3 {[%emt 0:00:07]} Nf6 {[%emt 0:01:28]} 18. Rac1 {[%emt 0:00:09]} h5 {[%emt 0:01:58]} 19. h3 {[%emt 0:15:14] White is more active.} (19. b5 $16) 19... h4 {[%emt 0:04:14]} 20. Nf1 {[%emt 0:00:33]} g5 {[%emt 0:11:21]} 21. Nh2 {[%emt 0:00:05] Wards off g4} Qd7 {[%emt 0:08:51]} 22. b5 {[%emt 0:01:02]} (22. a4 $5 {[%cal Rb4b5]}) 22... a5 {[%emt 0:03:12][%cal Ba6a5,Ba5a4][%mdl 32]} 23. b6 {[%emt 0:01:44] [#] Strongly threatening Bb5.} a4 {[%emt 0:05:32]} 24. Qb5 {[%emt 0:04:20]} cxb6 {[%emt 0:02:55]} 25. Qxb6 {[%emt 0:00:06]} Nxd5 {[%emt 0:09:41][%cal Bf6d5,Bd5e7,Be7c6][%mdl 32]} 26. Qa5 {[%emt 0:00:19]} Ne7 {[%emt 0:02:27]} 27. Bb5 {[%emt 0:01:29]} Nc6 {[%emt 0:00:47]} 28. Qxa4 {[%emt 0:00:06] And now d5 would win.} d5 {[%emt 0:02:08]} 29. Rc5 {[%emt 0:12:10]} Bf8 {[%emt 0:01:24]} 30. Qd1 {[%emt 0:06:41]} Bxc5 {[%emt 0:02:05]} 31. dxc5 {[%emt 0:00:06]} Qe6 {[%emt 0:02:14]} 32. Qh5 {[%emt 0:00:06][%csl Gb2][%cal Rh5h8]} f6 {[%emt 0:00:13]} 33. Ng4 {[%emt 0:00:03]} Rf8 {[%emt 0:00:47][%mdl 8192] This move loses the game for Black.} (33... Bxg4 $11 34. Qg6+ Kf8 35. hxg4 (35. Bxf6 Qg8 $15) 35... Qf7 36. Qxf6 Qxf6 37. Bxf6 Kf7 38. Bxg5 Rg8 39. Bxh4 Rxg4) 34. Nh6+ $18 {[%emt 0:00:11]} Kg7 {[%emt 0:00:23]} 35. Qxg5+ {[%emt 0:00:05]} Bg6 {[%emt 0:00:11][%cal Od5d4]} 36. Ng4 {[%emt 0:00:29] aiming for Qh6+.} (36. Qxh4 Rh8 37. Qg4 Rce8 38. Qxe6 Rxe6 $14) 36... Ne5 {[%emt 0:01:19]} 37. Qh6+ {[%emt 0:01:52]} (37. Qxh4 Rf7 38. Qh6+ (38. Bxe5 fxe5 39. Qh6+ Kg8 $18) 38... Kg8 $18) 37... Kf7 $2 {[%emt 0:00:15]} (37... Kg8 38. Bxe5 (38. Qxh4 Nxg4 39. hxg4 Rc7 $16) 38... fxe5) 38. Bxe5 {[%emt 0:00:08] White is clearly winning.} ({Weaker is} 38. Qxh4 Nxg4 39. Qxg4 (39. hxg4 Rh8 $11) 39... Qxg4 40. hxg4 Ke6 $11) 38... fxe5 {[%emt 0:00:21] [#]} 39. Bd7 $1 {[%emt 0:00:08][%mdl 576] Double Attack} Qe7 {[%emt 0:00:29]} 40. Bxc8 {[%emt 0:01:32]} Rxc8 {[%emt 0:00:06]} 41. Rf1 {[%emt 0:43:05] A cool game by Royal.   Weighted Error Value: White=0.18 (very precise) /Black=0.45} 1-0

[Event "4NCL 2022-2023"]
[Site "Daventry"]
[Date "2023.03.18"]
[Round "7.35"]
[White "Walton, Alan J"]
[Black "Willow, Jonah B"]
[Result "0-1"]
[ECO "D00"]
[WhiteElo "2089"]
[BlackElo "2437"]
[Annotator "TA"]
[PlyCount "142"]
[EventDate "2022.10.20"]
[EventType "team-tourn"]
[EventCountry "ENG"]
[SourceTitle "playchess.com"]
[Source "ChessBase"]
[SourceQuality "1"]
[TimeControl "40/6000+30:2400+30"]

{[%evp 9,142,0,0,0,0,0,0,0,0,-4,0,0,0,0,0,0,-7,-12,-5,-53,53,68,98,100,77,54,63,26,21,19,22,11,11,5,6,10,54,8,9,10,24,-19,-19,-19,-19,-18,-24,-69,-68,-71,-54,-92,-93,-78,-33,-33,-33,-33,-33,-33,-33,-34,-34,-34,-31,-34,-31,-34,-31,-31,-20,-31,-31,-31,-31,-31,-31,-31,-31,-31,-31,-47,-47,-47,-31,-31,-31,-74,-45,-45,-31,-31,-31,-28,-28,-28,-26,-64,-64,-66,-66,-70,-41,-70,-51,-54,-20,-20,-20,-22,-18,-18,-18,-18,-18,-18,-18,-18,-18,-18,-18,-18,-18,-18,-16,-16,-16,-16,-16,-22,-16,-17,-16,-754,-754]} 1. d4 {[%emt 0:00:06]} Nf6 {[%emt 0:00:24]} 2. Bg5 {[%emt 0:00:21]} d5 {[%emt 0:01:03]} 3. Bxf6 {[%emt 0:03:04]} gxf6 {[%emt 0:00:28]} 4. c4 {[%emt 0:01:23]} e5 {[%emt 0:00:25]} 5. e3 {[%emt 0:08:15]} exd4 {[%emt 0:00:16]} 6. Qxd4 {[%emt 0:04:05] D00: 1 d4 d5: Unusual lines.} Nc6 {[%emt 0:00:05]} 7. Qxd5 {[%emt 0:06:37]} Qxd5 {[%emt 0:00:06]} 8. cxd5 {[%emt 0:00:34] The position is equal.} Nb4 {[%emt 0:00:04]} 9. Bb5+ {[%emt 0:15:20]} c6 {[%emt 0:09:56]} 10. dxc6 {[%emt 0:03:41]} bxc6 {[%emt 0:01:00]} 11. Ba4 {[%emt 0:02:18]} Ba6 {[%emt 0:00:45]} 12. Ne2 {[%emt 0:07:18]} Nd3+ {[%emt 0:09:41]} 13. Kf1 {[%emt 0:04:13]} O-O-O {[%emt 0:00:10]} (13... Nxb2 $2 14. Bxc6+ Ke7 15. Bxa8 $18) 14. Nbc3 {[%emt 0:01:38] [#]} (14. Bxc6 $11 {might be stronger.} Nc1 15. Nbc3 Nxe2 16. Nxe2) 14... Nxb2 $146 {[%emt 0:01:51]} (14... Kc7 $1 $15) ({Predecessor:} 14... Kc7 15. Rb1 Bb4 16. Kg1 Ne5 17. Ng3 Bxc3 18. bxc3 Rd2 19. Bb3 Rg8 20. h3 c5 {0-1 Owens,J (1600)-Kolanek,R (2102) SB-2016-0-00449}) 15. Bxc6 $14 {[%emt 0:00:31]} Rd2 {[%emt 0:09:54]} 16. Bb5 {[%emt 0:01:51]} Bb7 {[%emt 0:02:30]} 17. Nd4 {[%emt 0:04:21]} Bb4 {[%emt 0:05:04]} 18. Rc1 {[%emt 0:04:55]} (18. Nce2 {seems wilder.} Rd8 19. h4 Kc7 20. Nf4) 18... Bxc3 {[%emt 0:19:45]} 19. Rxc3+ {[%emt 0:00:11]} Kb8 {[%emt 0:00:04]} 20. Be2 {[%emt 0:01:45] Repels Rd1+. Ke1 is the strong threat.} Na4 $1 {[%emt 0:02:00][%csl LRa2,LRc3]} 21. Rc2 {[%emt 0:13:21]} Rxc2 {[%emt 0:01:10]} 22. Nxc2 {[%emt 0:00:04]} Rd8 {[%emt 0:19:51] Against Bd3} 23. Nd4 {[%emt 0:09:53]} (23. Ke1 $1 $14) 23... Rc8 $1 $11 {[%emt 0:00:21] ( -> ...Rc1+)} 24. Bd1 {[%emt 0:00:24][%cal Of1e1]} Nb2 {[%emt 0:14:31]} (24... Rc1 $5 {[%cal Rc1d1]} 25. Ke2 Bxg2 $11) 25. Bc2 {[%emt 0:05:19] [#] aiming for Ke2.} Be4 $1 {[%emt 0:00:25]} 26. Bxe4 {[%emt 0:00:11]} Rc1+ {[%emt 0:00:02]} 27. Ke2 {[%emt 0:00:07]} Rxh1 {[%emt 0:00:03]} 28. Bxh7 {[%emt 0:00:43]} Rxh2 {[%emt 0:00:12][%mdl 4096] Endgame KRN-KBN} 29. Be4 {[%emt 0:00:05]} Rh5 {[%emt 0:04:15]} (29... Na4 $5 {[%cal Ra4c3]} 30. Kd2 Kc7 $17) 30. Nc6+ {[%emt 0:00:35]} Kc7 {[%emt 0:00:56]} 31. Nxa7 {[%emt 0:02:37]} Na4 {[%emt 0:02:22]} 32. Bd3 {[%emt 0:00:34]} Nc3+ {[%emt 0:01:21]} 33. Kd2 {[%emt 0:00:25]} Rc5 {[%emt 0:00:40]} 34. a4 $1 {[%emt 0:00:07][%mdl 64] [#] Deflection} Nxa4 {[%emt 0:00:19] White must now prevent ...Nc3.} 35. Nb5+ {[%emt 0:00:12]} Kd8 {[%emt 0:00:15]} 36. Nd4 {[%emt 0:01:37]} Rh5 {[%emt 0:01:36]} 37. Be4 {[%emt 0:00:57]} Nc5 {[%emt 0:00:22]} 38. Bf3 {[%emt 0:00:14]} Rh1 {[%emt 0:00:04]} 39. Bd5 {[%emt 0:00:24]} Rb1 {[%emt 0:01:22]} 40. f4 {[%emt 0:01:18]} Rb2+ {[%emt 0:02:34]} 41. Kc3 {[%emt 0:41:47]} Na4+ {[%emt 0:40:47]} 42. Kd3 {[%emt 0:00:12]} Ke7 {[%emt 0:00:28]} 43. g4 {[%emt 0:00:50]} Rb1 {[%emt 0:00:00]} 44. Bf3 {[%emt 0:00:00]} Nc5+ {[%emt 0:00:00]} 45. Kc4 {[%emt 0:00:00]} Rc1+ {[%emt 0:00:00]} 46. Kd5 {[%emt 0:00:00]} Ne6 {[%emt 0:00:00]} 47. Nf5+ {[%emt 0:00:00]} Kf8 {[%emt 0:00:00]} 48. Nd4 {[%emt 0:00:00]} Rf1 {[%emt 0:00:00] And now ...Nxd4 would win.} (48... Rc3 $5 {[%cal Rc3e3]} 49. Ke4 Rc4 $17) 49. Ke4 {[%emt 0:00:00]} Nc5+ {[%emt 0:00:00]} 50. Kf5 {[%emt 0:00:00]} Re1 {[%emt 0:00:00]} 51. Nc2 {[%emt 0:00:00]} Rc1 {[%emt 0:00:00]} 52. Nb4 {[%emt 0:00:00]} Kg7 {[%emt 0:00:00]} 53. g5 {[%emt 0:00:00]} fxg5 {[%emt 0:00:00]} 54. Kxg5 {[%emt 0:00:00]} Rg1+ {[%emt 0:00:00]} 55. Kh4 $1 {[%emt 0:00:00]} Nb3 {[%emt 0:00:00]} 56. Nd5 {[%emt 0:00:00]} Nd2 {[%emt 0:00:00]} 57. Bg4 {[%emt 0:00:00]} Ne4 {[%emt 0:00:00] Threatens to win with ...Rh1+.} 58. Bf3 {[%emt 0:00:00] Repels Rh1+} Nd6 {[%emt 0:00:00]} 59. e4 {[%emt 0:00:00][%cal Be3e4,Be4e5][%mdl 32] Inhibits Nf5+.} Re1 {[%emt 0:00:00]} 60. e5 {[%emt 0:00:00]} Nf5+ {[%emt 0:00:00]} 61. Kg5 {[%emt 0:00:00]} Nd4 {[%emt 0:00:00]} 62. Bg4 {[%emt 0:00:00]} Rg1 {[%emt 0:00:00]} 63. Nf6 {[%emt 0:00:00]} Ne6+ {[%emt 0:02:07]} 64. Kf5 {[%emt 0:00:00]} Rf1 {[%emt 0:00:09][%csl Ge6][%cal Rf1f4]} 65. Nd5 {[%emt 0:00:00]} Re1 {[%emt 0:00:35]} 66. Nf6 {[%emt 0:00:00]} Kf8 {[%emt 0:00:38]} 67. Nd5 {[%emt 0:00:00]} Rg1 {[%emt 0:00:32]} 68. Ne3 {[%emt 0:00:00]} Nc5 {[%emt 0:00:26]} 69. Kg5 {[%emt 0:00:00]} Ne4+ {[%emt 0:01:31]} 70. Kf5 {[%emt 0:00:00]} Nf2 {[%emt 0:00:21] ...Rg3 would be deadly.} 71. Kg5 $2 {[%emt 0:00:00][%mdl 8192]} (71. Bh5 $11) 71... Rg3 {[%emt 0:00:08] Weighted Error Value: White=0.10 (very precise) /Black=0.09 (flawless)} 0-1

[Event "4NCL 2022-2023"]
[Site "Daventry"]
[Date "2023.03.18"]
[Round "7.36"]
[White "Czopor, Maciej"]
[Black "Chan, Sheng Liang Bernard"]
[Result "1/2-1/2"]
[ECO "D02"]
[WhiteElo "2412"]
[BlackElo "2019"]
[Annotator "TA"]
[PlyCount "75"]
[EventDate "2022.10.20"]
[EventType "team-tourn"]
[EventCountry "ENG"]
[SourceTitle "playchess.com"]
[Source "ChessBase"]
[SourceQuality "1"]
[TimeControl "40/6000+30:2400+30"]

{[%evp 20,75,0,-34,-22,-31,-11,-20,-28,-31,-22,-21,-16,-20,0,0,0,-10,16,15,14,0,42,0,14,19,27,24,71,71,77,40,48,45,148,145,154,126,229,0,0,0,0,0,0,0,0,0,0,0,0,0,0,0,0,0,0,0]} 1. d4 {[%emt 0:00:09]} Nf6 {[%emt 0:01:42]} 2. Nf3 {[%emt 0:00:15]} d5 {[%emt 0:00:18]} 3. Bf4 {[%emt 0:00:07]} e6 {[%emt 0:03:12]} 4. e3 {[%emt 0:00:19]} Bd6 {[%emt 0:00:35]} 5. Bg3 {[%emt 0:00:22]} O-O {[%emt 0:04:45]} 6. Nbd2 {[%emt 0:00:22]} c5 {[%emt 0:00:30]} 7. c3 {[%emt 0:00:04]} b6 {[%emt 0:00:45]} 8. Bd3 {[%emt 0:02:48]} Bb7 {[%emt 0:00:20]} 9. Ne5 {[%emt 0:03:19]} Nc6 {[%emt 0:01:04][%cal Bb8c6,Bc6e7,Be7f5,Bf5d6,Bd6e4][%mdl 32]} 10. O-O {[%emt 0:03:53]} Qc7 {[%emt 0:09:39]} 11. f4 {[%emt 0:00:07]} Ne7 {[%emt 0:00:10] D02: 1 d4 d5 2 Nf3 sidelines, including 2...Nf6 3 g3 and 2...Nf6 3 Bf4.} 12. Qf3 {[%emt 0:10:16]} Nf5 {[%emt 0:03:44]} 13. Bf2 {[%emt 0:00:48]} Be7 {[%emt 0:00:14]} 14. Ng4 {[%emt 0:08:12]} Nxg4 {[%emt 0:05:04]} 15. Qxg4 {[%emt 0:00:05]} Nd6 {[%emt 0:00:09]} (15... g6 {simplifies} 16. Qe2 Nd6 17. g4 Ne4) 16. Bh4 {[%emt 0:07:16] [#]} Ne4 $146 {[%emt 0:19:58]} ({Predecessor:} 16... f5 17. Qh3 a5 18. Bxe7 Qxe7 19. Qf3 Ba6 20. Bxa6 Rxa6 21. b3 Rc8 22. c4 dxc4 23. bxc4 cxd4 24. exd4 Nxc4 25. Nxc4 Rxc4 {0-1 Boric,M (2368)-Drasko,M (2434) BIH-chT 17th 2018 (9.1)}) 17. Bxe7 {[%emt 0:10:34]} Qxe7 {[%emt 0:00:23]} 18. Rad1 {[%emt 0:02:22]} Bc6 {[%emt 0:07:31]} 19. Nxe4 {[%emt 0:14:28]} dxe4 {[%emt 0:06:45]} 20. Bc2 {[%emt 0:01:04]} Bd5 {[%emt 0:06:28]} 21. b3 {[%emt 0:06:42] Prevents Bc4} c4 {[%emt 0:04:29]} 22. f5 {[%emt 0:00:49]} exf5 {[%emt 0:07:25]} 23. Rxf5 {[%emt 0:00:58]} cxb3 {[%emt 0:00:59]} (23... Rad8 $11 {feels stronger.}) 24. axb3 $16 {[%emt 0:01:12]} ({Much weaker is} 24. Bxb3 Bxb3 25. axb3 g6 $11) 24... Bb7 {[%emt 0:09:59]} 25. Rf4 {[%emt 0:08:49][%cal Oc3c4]} (25. Re5 $5 {[%cal Re5e7]} Qc7 26. c4 $11 (26. Bxe4 Bxe4 27. Qxe4 Qxc3 $11)) 25... Rae8 {[%emt 0:06:46]} 26. Rdf1 {[%emt 0:03:00]} g6 {[%emt 0:02:11] [#]} (26... Bc8 $14 27. Qd1 f5) 27. Rf6 $1 {[%emt 0:02:03]} Bc8 {[%emt 0:02:24]} 28. Qf4 {[%emt 0:05:37] White has more active pieces.} Bf5 {[%emt 0:02:47] [#]} (28... Kg7 $16) 29. Qh4 $2 {[%emt 0:04:37]} (29. Qg5 $1 $18 Be6 30. R1f4 (30. Bxe4 Bxb3 {[%mdl 64] Discovered Attack} 31. Bd5 Bxd5 $17)) 29... Kg7 $1 $36 {[%emt 0:01:24][%mdl 2048] Black is pushing. The position is equal.} 30. R1xf5 {[%emt 0:00:07]} gxf5 {[%emt 0:00:02]} 31. Qg5+ {[%emt 0:01:21]} Kh8 {[%emt 0:00:13] Threatens to win with ...Qa3.} 32. Qxf5 {[%emt 0:00:11]} Qa3 {[%emt 0:01:55] Hoping for ...Qc1+.} 33. Bxe4 {[%emt 0:09:49][%csl Ge4][%cal Rf5h7]} (33. Rh6 $5 Qc1+ $8 34. Kf2 Qd2+ 35. Kf1 Qc1+ 36. Kf2 Qd2+ 37. Kf1 Qc1+ 38. Kf2 $11) 33... Qc1+ {[%emt 0:00:07]} (33... Qxb3 $2 34. Qxh7#) 34. Kf2 {[%emt 0:00:04][%csl Ge4][%cal Rf5h7]} Qd2+ {[%emt 0:00:06]} 35. Kf1 {[%emt 0:01:24][%csl Ge4][%cal Rf5h7] The board is on fire.} (35. Kf3 $5 Qd1+ $8 36. Kf4 Qf1+ 37. Kg5 Rg8+ 38. Kh6 Qxf5 39. Bxf5 $11) 35... Qd1+ {[%emt 0:00:05]} (35... Qxc3 $2 36. Qxh7#) 36. Kf2 {[%emt 0:00:02][%csl Ge4][%cal Rf5h7]} Qd2+ {[%emt 0:00:03]} (36... Qxb3 $2 37. Qxh7#) 37. Kf3 {[%emt 0:02:46][%csl Ge4][%cal Rf5h7]} (37. Kf1 $5 Qd1+ $8 38. Kf2 Qd2+ $11) 37... Qd1+ $1 {[%emt 0:00:11]} 38. Kf2 {[%emt 0:02:21] Weighted Error Value: White=0.17 (very precise) /Black=0.18 (very precise)} 1/2-1/2

[Event "4NCL 2022-2023"]
[Site "Daventry"]
[Date "2023.03.18"]
[Round "7.38"]
[White "Yao, Lan"]
[Black "Kisteneva, Liza"]
[Result "1-0"]
[ECO "B96"]
[WhiteElo "2279"]
[BlackElo "2057"]
[Annotator "TA"]
[PlyCount "59"]
[EventDate "2022.10.20"]
[EventType "team-tourn"]
[EventCountry "ENG"]
[SourceTitle "playchess.com"]
[Source "ChessBase"]
[SourceQuality "1"]
[TimeControl "40/6000+30:2400+30"]

{[%evp 17,59,0,51,-49,-45,-44,-46,-53,51,32,27,41,47,9,27,15,24,17,341,326,737,293,404,106,669,666,1635,1610,1645,1637,1564,1543,1281,600,600,586,658,603,690,700,717,681,29978,29979]} 1. e4 {[%emt 0:00:04]} c5 {[%emt 0:00:05]} 2. Nf3 {[%emt 0:00:08]} d6 {[%emt 0:00:06]} 3. d4 {[%emt 0:00:03]} cxd4 {[%emt 0:00:03]} 4. Nxd4 {[%emt 0:00:04]} Nf6 {[%emt 0:00:07]} 5. Nc3 {[%emt 0:00:04]} a6 {[%emt 0:00:06]} 6. Bg5 {[%emt 0:00:03]} e6 {[%emt 0:00:17]} 7. f4 {[%emt 0:00:04]} Qc7 {[%emt 0:00:17]} 8. Qf3 {[%emt 0:00:07]} b5 {[%emt 0:00:19]} 9. O-O-O {[%emt 0:07:42]} b4 {[%emt 0:02:22] [#]} (9... Nbd7 $1 $11) 10. Nd5 {[%emt 0:01:21] B96: Sicilian Najdorf: 6 Bg5 e6 7 f4, lines other than 7...Qb6 and 7...Be7.} exd5 $15 {[%emt 0:07:15]} 11. Bxf6 {[%emt 0:00:23][%mdl 64] Remove Defender} gxf6 {[%emt 0:00:06]} 12. exd5 {[%emt 0:00:10] [#] Black is slightly better.} Bh6 $146 {[%emt 0:37:25]} ({Better is} 12... Qc5 $15) ({Predecessor:} 12... Bg7 13. Re1+ Kf8 14. Qe4 Qd8 15. Nc6 f5 16. Qxb4 Nxc6 17. dxc6 Qc7 18. Qa4 Be6 {0-1 Pershin,D (2400)-Nenezic,M (2515) EU-ch rapid Skopje 2018 (6)}) 13. Bd3 $1 $14 {[%emt 0:04:52]} Nd7 {[%emt 0:10:06]} 14. Rhe1+ {[%emt 0:20:18]} ({Much weaker is} 14. Nf5 Ne5 15. Qe4 Bxf5 16. Qxf5 Kf8 $17) 14... Kf8 $1 {[%emt 0:02:24]} (14... Ne5 $2 15. Kb1 Bf8 16. Nc6 $18) 15. Nf5 $36 {[%emt 0:08:57][%cal Bd4f5,Bf5h6,Bh6g4][%mdl 2080] Black is under pressure.} Ne5 {[%emt 0:10:32]} 16. Rxe5 {[%emt 0:00:43]} fxe5 {[%emt 0:00:57]} 17. Nxh6 {[%emt 0:00:07] Hoping for fxe5.} e4 {[%emt 0:00:10][%mdl 8192]} 18. Qxe4 $18 {[%emt 0:02:26]} Kg7 $2 {[%emt 0:08:05] [#] Black is weak on the light squares} (18... f5 19. Qxb4 Rb8) 19. f5 $1 {[%emt 0:10:27]} f6 {[%emt 0:03:45]} (19... Qd8 20. Qe3) 20. Qh4 {[%emt 0:02:28]} (20. Qg4+ $18 {is the precise move to win.} Kxh6 21. Re1 (21. Qxb4 $2 {loses.} Re8 $19)) 20... Ra7 $2 {[%emt 0:08:05][%mdl 8192]} (20... Rf8 $16) 21. Ng4 {[%emt 0:05:34]} Qd8 {[%emt 0:00:12]} 22. Qh6+ {[%emt 0:00:20]} Kf7 {[%emt 0:00:07]} 23. Re1 {[%emt 0:01:08][%cal Oe1e6] Strongly threatening Re6!} Rg8 {[%emt 0:03:37]} 24. Qxh7+ {[%emt 0:02:20]} Kf8 {[%emt 0:01:31]} 25. Qxa7 {[%emt 0:04:00]} (25. Qh6+ $142 Rag7 26. Nxf6 {[%mdl 64] Trapped Piece}) 25... Rxg4 {[%emt 0:00:04]} 26. Qf2 {[%emt 0:04:19]} Bb7 {[%emt 0:01:26]} 27. h3 {[%emt 0:01:04]} Rg5 {[%emt 0:00:30]} 28. g4 {[%emt 0:05:57]} Bxd5 {[%emt 0:00:19]} 29. Qd4 {[%emt 0:01:04]} Bg2 {[%emt 0:02:51]} 30. Re6 {[%emt 0:01:05] An exciting game.   Weighted Error Value: White=0.85/Black=1.50} 1-0